bitfinex-derivatives/quotes_SOLF0:USTF0_20260117
["timestamp","ask_amount","ask_price","bid_price","bid_amount"]
[1768657394210,3.19693925,143.93,143.87,6.2575]
[1768657397009,3.19693925,143.93,143.86,3.16406411]
[1768657407926,4.95107257,143.94,143.88,3.24876381]
[1768657408722,3.2178778,143.93,143.88,3.24876381]
[1768657413630,3.2178778,143.93,143.86,3.08282612]
[1768657414433,3.2178778,143.93,143.86,9.34102612]
[1768657417431,3.31356637,143.92,143.86,9.34102612]
[1768657420632,3.31356637,143.92,143.87,3.08282612]
[1768657441056,9.56956637,143.92,143.85,2.99516591]
[1768657441253,3.27740882,143.9,143.83,165.80545445]
[1768657441550,3.27740882,143.9,143.82,265.65516591]
[1768657441551,5.00933811,143.89,143.82,265.65516591]
[1768657441757,3.27740882,143.88,143.82,265.65516591]
[1768657444556,3.27740882,143.88,143.82,2.99516591]
[1768657446553,3.27740882,143.9,143.82,2.99516591]
[1768657446857,5.00933811,143.9,143.82,2.99516591]
[1768657452656,3.27740882,143.92,143.84,2.99516591]
[1768657452857,5.00933811,143.92,143.84,2.99516591]
[1768657454259,3.27740882,143.92,143.84,2.99516591]
[1768657458656,3.27740882,143.9,143.81,164.70509304]
[1768657458861,3.27740882,143.9,143.82,265.67516591]
[1768657459067,3.27740882,143.9,143.83,2.99516591]
[1768657460066,3.27740882,143.9,143.82,262.68]
[1768657460268,3.27740882,143.88,143.82,262.68]
[1768657460566,3.27740882,143.88,143.83,2.99516591]
[1768657462667,3.31797884,143.9,143.83,2.99516591]
[1768657469875,3.31797884,143.89,143.83,2.99516591]
[1768657474885,11.30690813,143.89,143.82,262.68]
[1768657475181,3.18981757,143.88,143.82,265.78415049]
[1768657475383,3.18981757,143.88,143.83,3.10415049]
[1768657500912,3.18981757,143.88,143.82,268.9399]
[1768657501107,3.19009198,143.87,143.79,3.12229117]
[1768657501307,8.48360334,143.86,143.8,181.5]
[1768657501512,3.19009198,143.86,143.8,181.5]
[1768657502816,3.19009198,143.86,143.8,184.62229117]
[1768657514921,3.19009198,143.86,143.8,190.88289117]
[1768657515625,3.19009198,143.86,143.81,3.12229117]
[1768657523231,11.11962535,143.88,143.81,9.38259117]
[1768657523438,3.1294688,143.88,143.82,3.02747029]
[1768657524827,3.1294688,143.88,143.82,9.28737029]
[1768657530346,3.1294688,143.86,143.8,9.28797029]
[1768657532147,3.1294688,143.86,143.8,3.02747029]
[1768657537354,4.86222535,143.86,143.8,3.02747029]
[1768657539359,4.8631309,143.86,143.8,3.02747029]
[1768657542757,4.97847201,143.88,143.81,3.11403778]
[1768657543052,5.30462599,143.87,143.81,3.11403778]
[1768657543248,4.97847201,143.88,143.81,3.11403778]
[1768657543450,5.30529938,143.87,143.81,3.11403778]
[1768657543649,4.97847201,143.88,143.81,3.11403778]
[1768657543852,5.30530061,143.87,143.81,9.37433778]
[1768657544053,4.97847201,143.88,143.81,9.37433778]
[1768657544257,8.55102574,143.87,143.81,9.37433778]
[1768657544460,3.24480991,143.87,143.81,9.37433778]
[1768657551562,7.04028355,143.86,143.81,3.11403778]
[1768657551857,4.9527457,143.86,143.81,3.11403778]
[1768657552163,5.30678979,143.85,143.79,3.28779398]
[1768657552360,4.9527457,143.86,143.79,3.28779398]
[1768657552561,5.30663051,143.85,143.79,3.28779398]
[1768657552760,4.9527457,143.86,143.79,3.28779398]
[1768657552963,5.30663051,143.85,143.79,3.28779398]
[1768657553163,4.9527457,143.86,143.79,3.28779398]
[1768657553363,5.30663051,143.85,143.79,3.28779398]
[1768657553568,4.9527457,143.86,143.79,3.28779398]
[1768657553864,4.9527457,143.84,143.76,3.28779398]
[1768657554761,4.9527457,143.84,143.78,6.2614]
[1768657554958,4.9527457,143.84,143.78,9.54919398]
[1768657560576,4.9527457,143.84,143.79,9.54889398]
[1768657562577,4.9527457,143.84,143.79,3.28779398]
[1768657563776,1.7336621,143.82,143.77,9.54959398]
[1768657564167,1.7336621,143.82,143.77,3.28779398]
[1768657564973,4.9527457,143.82,143.77,3.28779398]
[1768657572275,3.2190836,143.82,143.77,3.28779398]
[1768657579294,3.2190836,143.82,143.76,6.2623]
[1768657581396,3.2190836,143.82,143.76,9.55009398]
[1768657584891,3.2190836,143.82,143.76,3.28779398]
[1768657589499,3.2190836,143.82,143.77,3.04952434]
[1768657589697,4.74563884,143.84,143.77,3.04952434]
[1768657590904,4.74563884,143.84,143.77,9.31152434]
[1768657593004,3.09880272,143.83,143.77,9.31152434]
[1768657599418,4.83317769,143.83,143.77,9.31152434]
[1768657606320,5.31606068,143.82,143.77,9.31152434]
[1768657606615,4.83317769,143.83,143.77,9.31152434]
[1768657606818,5.31606068,143.82,143.77,9.31152434]
[1768657607016,4.83317769,143.83,143.77,9.31152434]
[1768657607215,5.31736787,143.82,143.77,9.31152434]
[1768657607417,4.83317769,143.83,143.77,9.31152434]
[1768657607612,5.31736787,143.82,143.77,9.31152434]
[1768657607824,4.83317769,143.83,143.77,9.31152434]
[1768657608022,5.3174715,143.82,143.77,9.31152434]
[1768657608222,4.83317769,143.83,143.77,9.31152434]
[1768657608422,5.31919257,143.82,143.77,9.31152434]
[1768657608727,4.83317769,143.83,143.77,9.31152434]
[1768657608925,5.31919257,143.82,143.77,9.31152434]
[1768657609124,4.83317769,143.83,143.77,9.31152434]
[1768657609330,5.31965753,143.82,143.77,9.31152434]
[1768657609528,4.83317769,143.83,143.77,9.31152434]
[1768657609730,5.31965753,143.82,143.77,9.31152434]
[1768657609928,1.73437497,143.81,143.75,9.3801299]
[1768657610128,4.83317769,143.81,143.75,9.3801299]
[1768657612131,3.09880272,143.81,143.75,9.3801299]
[1768657612327,4.83317769,143.81,143.76,3.06189314]
[1768657622140,4.86302179,143.83,143.76,9.32429314]
[1768657622340,5.3140852,143.82,143.77,3.06189314]
[1768657622537,4.86302179,143.83,143.77,3.06189314]
[1768657622734,5.31407378,143.82,143.77,3.06189314]
[1768657622941,4.86302179,143.83,143.77,3.06189314]
[1768657623144,5.31383573,143.82,143.77,3.06189314]
[1768657623344,4.86302179,143.83,143.77,3.06189314]
[1768657623538,5.3138296,143.82,143.77,3.06189314]
[1768657623739,4.86302179,143.83,143.77,3.06189314]
[1768657623939,5.31382838,143.82,143.77,9.32379314]
[1768657624134,4.86302179,143.83,143.77,9.32379314]
[1768657624339,5.31384294,143.82,143.77,9.32379314]
[1768657624539,4.86302179,143.83,143.77,9.32379314]
[1768657624740,5.31384294,143.82,143.77,9.32379314]
[1768657625041,4.86302179,143.83,143.77,9.32379314]
[1768657625240,5.31378659,143.82,143.77,9.32379314]
[1768657625438,3.12864682,143.87,143.79,6.2611]
[1768657625647,3.12864682,143.85,143.79,9.32299314]
[1768657625838,5.31375248,143.84,143.79,9.32299314]
[1768657626035,3.12864682,143.85,143.79,9.32299314]
[1768657626248,5.31324572,143.84,143.79,9.32299314]
[1768657626445,3.12864682,143.85,143.79,9.32299314]
[1768657626647,5.31321162,143.84,143.79,9.32299314]
[1768657626845,3.12864682,143.85,143.79,9.32299314]
[1768657627145,5.31321162,143.84,143.79,9.32299314]
[1768657627345,3.12864682,143.85,143.79,9.32299314]
[1768657627543,5.31316828,143.84,143.79,9.32299314]
[1768657627744,3.12864682,143.85,143.79,9.32299314]
[1768657627944,5.31313418,143.84,143.79,9.32299314]
[1768657628148,3.12864682,143.85,143.79,9.32299314]
[1768657628347,5.31308916,143.84,143.79,9.32299314]
[1768657628548,3.12864682,143.85,143.79,9.32299314]
[1768657628748,5.31308916,143.84,143.79,9.32299314]
[1768657628948,3.12864682,143.85,143.79,9.32299314]
[1768657629148,5.31197092,143.84,143.79,9.32299314]
[1768657629345,3.12864682,143.85,143.79,9.32299314]
[1768657629546,5.31192056,143.84,143.79,9.32299314]
[1768657629750,3.12864682,143.85,143.79,9.32299314]
[1768657629952,5.31192056,143.84,143.79,9.32299314]
[1768657630247,3.12864682,143.85,143.79,9.32299314]
[1768657630442,5.31109601,143.84,143.79,9.32299314]
[1768657630647,3.12864682,143.85,143.79,9.32299314]
[1768657630849,5.31106193,143.84,143.79,9.32299314]
[1768657631148,3.12864682,143.85,143.79,9.32299314]
[1768657640156,3.12864682,143.85,143.8,3.06189314]
[1768657643854,1.73437497,143.86,143.8,3.06189314]
[1768657644055,1.73437497,143.86,143.81,3.25382025]
[1768657659263,4.88013768,143.87,143.81,3.25382025]
[1768657659470,5.29538674,143.86,143.81,3.25382025]
[1768657659661,4.88013768,143.87,143.81,3.25382025]
[1768657659860,5.29538674,143.86,143.81,3.25382025]
[1768657660061,4.88013768,143.87,143.81,3.25382025]
[1768657660261,5.29673252,143.86,143.81,3.25382025]
[1768657660462,4.88013768,143.87,143.81,3.25382025]
[1768657660662,5.29673252,143.86,143.81,3.25382025]
[1768657660862,4.88013768,143.87,143.81,3.25382025]
[1768657661062,5.29673252,143.86,143.81,3.25382025]
[1768657661264,4.88013768,143.87,143.81,3.25382025]
[1768657661461,5.29861719,143.86,143.81,3.25382025]
[1768657661663,4.88013768,143.87,143.81,3.25382025]
[1768657661967,5.29861719,143.86,143.81,3.25382025]
[1768657662162,4.88013768,143.87,143.81,3.25382025]
[1768657662366,5.30088343,143.86,143.81,3.25382025]
[1768657662665,4.88013768,143.87,143.81,3.25382025]
[1768657662967,5.30088343,143.86,143.81,3.25382025]
[1768657663167,5.30407003,143.85,143.81,3.25382025]
[1768657663369,4.88013768,143.87,143.81,3.25382025]
[1768657663565,5.30414778,143.86,143.81,3.25382025]
[1768657663867,5.30414778,143.85,143.81,3.25382025]
[1768657664067,4.88013768,143.87,143.81,3.25382025]
[1768657664269,5.30422297,143.86,143.81,3.25382025]
[1768657664566,5.30422297,143.85,143.81,3.25382025]
[1768657664867,4.88013768,143.87,143.81,3.25382025]
[1768657665065,5.30422297,143.86,143.81,3.25382025]
[1768657665262,5.30422297,143.85,143.81,3.25382025]
[1768657665463,4.88013768,143.87,143.81,3.25382025]
[1768657665664,5.30429572,143.86,143.82,3.27365984]
[1768657665859,4.79559863,143.89,143.82,3.27365984]
[1768657666067,5.30365822,143.88,143.82,3.27365984]
[1768657666266,4.79559863,143.89,143.82,3.27365984]
[1768657666471,5.30264213,143.88,143.82,3.27365984]
[1768657666771,4.79559863,143.89,143.83,3.27365984]
[1768657666970,5.30264213,143.88,143.83,3.27365984]
[1768657667267,4.79559863,143.89,143.83,3.27365984]
[1768657667467,5.30153109,143.88,143.83,3.27365984]
[1768657667669,4.79559863,143.89,143.83,9.53305984]
[1768657668572,3.06206137,143.89,143.83,9.53305984]
[1768657669466,3.06206137,143.89,143.84,3.27365984]
[1768657671371,9.31826137,143.91,143.84,3.27365984]
[1768657671576,4.79559863,143.93,143.86,3.27365984]
[1768657671776,5.29607711,143.92,143.86,3.27365984]
[1768657671968,4.79559863,143.93,143.86,3.27365984]
[1768657672875,4.79559863,143.93,143.86,9.53175984]
[1768657675982,4.79559863,143.93,143.87,3.04117404]
[1768657676174,1.73353726,143.93,143.87,3.04117404]
[1768657677582,4.9872715,143.93,143.87,3.04117404]
[1768657681797,97.2637,143.99,143.88,3.04117404]
[1768657681798,11.2417715,143.95,143.88,3.04117404]
[1768657682690,3.25373424,143.94,143.88,3.04117404]
[1768657686697,3.25373424,143.94,143.89,3.04117404]
[1768657687091,1.73353726,143.95,143.89,3.04117404]
[1768657687400,3.25373424,143.96,143.89,3.04117404]
[1768657688899,3.25373424,143.96,143.9,3.04117404]
[1768657691191,3.25373424,143.96,143.9,9.29757404]
[1768657691596,3.25373424,143.96,143.91,3.04117404]
[1768657696201,3.25373424,143.96,143.9,6.2564]
[1768657696405,1.73353726,143.95,143.89,3.04117404]
[1768657697807,1.73353726,143.95,143.89,9.29797404]
[1768657700009,1.73353726,143.95,143.9,3.04117404]
[1768657702511,3.25296997,143.94,143.89,6.2568]
[1768657702907,3.25296997,143.94,143.89,9.44719846]
[1768657710413,3.25296997,143.94,143.87,9.44789846]
[1768657712511,3.25296997,143.94,143.88,3.15518286]
[1768657714116,3.14970722,143.93,143.88,3.15518286]
[1768657715516,3.14970722,143.92,143.86,3.15518286]
[1768657715716,3.14970722,143.96,143.86,3.15518286]
[1768657716017,4.88324448,143.94,143.86,3.15518286]
[1768657716817,4.88324448,143.94,143.87,3.15518286]
[1768657717517,11.13804448,143.94,143.87,3.15518286]
[1768657720121,5.29346389,143.93,143.87,3.15518286]
[1768657720320,11.13804448,143.94,143.87,3.15518286]
[1768657720521,5.29348043,143.93,143.87,3.15518286]
[1768657720822,11.13804448,143.94,143.87,3.15518286]
[1768657721016,5.29351439,143.93,143.87,3.15518286]
[1768657721213,11.13804448,143.94,143.87,3.15518286]
[1768657721412,5.29399611,143.93,143.87,3.15518286]
[1768657721614,6.254,143.96,143.88,3.15518286]
[1768657721921,5.29359462,143.95,143.88,3.15518286]
[1768657722123,11.13533576,143.96,143.88,3.15518286]
[1768657722416,5.29409542,143.95,143.88,3.15518286]
[1768657722617,11.13533576,143.96,143.88,3.15518286]
[1768657722819,5.29409542,143.95,143.89,3.15518286]
[1768657723017,11.13533576,143.96,143.89,3.15518286]
[1768657724123,5.29547493,143.95,143.89,3.15518286]
[1768657724317,11.13533576,143.96,143.89,3.15518286]
[1768657724516,5.29550019,143.95,143.89,3.15518286]
[1768657724722,11.13533576,143.96,143.89,3.15518286]
[1768657724922,5.29550019,143.95,143.89,3.15518286]
[1768657725121,11.13533576,143.96,143.89,3.15518286]
[1768657725317,5.29552869,143.95,143.89,3.15518286]
[1768657725523,11.13533576,143.96,143.89,3.15518286]
[1768657725725,5.29552869,143.95,143.89,3.15518286]
[1768657725921,11.13533576,143.96,143.89,3.15518286]
[1768657726122,5.29552869,143.95,143.89,3.15518286]
[1768657726322,11.13533576,143.96,143.89,3.15518286]
[1768657726521,5.29594507,143.95,143.89,3.15518286]
[1768657726722,11.13533576,143.96,143.89,3.15518286]
[1768657727024,5.29594507,143.95,143.9,3.15518286]
[1768657727225,3.14970722,143.96,143.9,3.15518286]
[1768657727825,3.14970722,143.96,143.91,9.41098286]
[1768657729119,11.13453576,143.98,143.91,9.41098286]
[1768657729318,5.29548023,143.97,143.91,9.41098286]
[1768657729520,11.13453576,143.98,143.91,9.41098286]
[1768657729721,5.29548018,143.97,143.91,9.41098286]
[1768657729922,11.13453576,143.98,143.91,9.41098286]
[1768657730223,5.29524322,143.97,143.91,9.41098286]
[1768657730423,11.13453576,143.98,143.91,9.41098286]
[1768657730626,3.14970722,143.98,143.92,3.15518286]
[1768657737232,3.14970722,143.98,143.92,9.41068286]
[1768657739631,3.14970722,143.98,143.93,9.5360447]
[1768657756644,1.73162854,143.99,143.94,3.2809447]
[1768657759444,9.28749698,144.0,143.94,3.2809447]
[1768657759445,3.03509698,144.0,143.94,3.2809447]
[1768657781161,4.76672552,144.0,143.94,3.2809447]
[1768657781562,4.76672552,144.0,143.94,9.5355447]
[1768657783359,4.76525072,144.0,143.94,9.5355447]
[1768657784161,3.03509698,144.0,143.94,9.5355447]
[1768657784357,4.76525072,144.0,143.94,9.5355447]
[1768657790567,8.58909401,143.99,143.93,3.24188356]
[1768657790769,3.29304049,143.99,143.93,3.24188356]
[1768657791866,3.29304049,143.99,143.93,9.49688356]
[1768657793173,5.02319423,143.99,143.93,9.49688356]
[1768657799276,5.02319423,143.99,143.94,3.10153579]
[1768657802479,3.29304049,143.99,143.94,3.10153579]
[1768657803986,5.02319423,143.99,143.94,3.10153579]
[1768657811784,3.221921,144.01,143.94,3.10153579]
[1768657811990,1.73015374,143.98,143.94,3.10153579]
[1768657812388,3.221921,143.99,143.94,3.10153579]
[1768657812690,7.01526043,143.98,143.94,3.10153579]
[1768657812991,1.73015374,143.98,143.94,3.10153579]
[1768657814082,3.221921,143.99,143.94,3.10153579]
[1768657814284,7.01417285,143.98,143.94,3.10153579]
[1768657814483,1.73015374,143.98,143.94,3.10153579]
[1768657816987,3.221921,144.01,143.94,3.10153579]
[1768657817189,5.28305354,144.0,143.94,3.10153579]
[1768657817492,5.28305354,143.99,143.94,3.10153579]
[1768657817792,3.221921,144.0,143.94,3.10153579]
[1768657817993,5.28305256,143.99,143.94,3.10153579]
[1768657818186,3.221921,144.0,143.94,3.10153579]
[1768657825802,3.221921,144.0,143.95,3.08922084]
[1768657826502,9.34363885,144.02,143.96,3.08922084]
[1768657826703,5.28249315,144.01,143.96,3.08922084]
[1768657826903,9.34363885,144.02,143.96,3.08922084]
[1768657827104,5.28225449,144.01,143.96,3.08922084]
[1768657827406,9.34363885,144.02,143.96,3.08922084]
[1768657827600,5.28211,144.01,143.96,3.08922084]
[1768657827801,9.34363885,144.02,143.96,3.08922084]
[1768657828002,5.28211297,144.01,143.96,3.08922084]
[1768657828203,9.34363885,144.02,143.96,3.08922084]
[1768657828503,5.28197584,144.01,143.96,3.08922084]
[1768657828807,9.34363885,144.02,143.96,3.08922084]
[1768657829002,5.28197584,144.01,143.96,3.08922084]
[1768657829206,9.34363885,144.02,143.96,3.08922084]
[1768657829510,5.28184286,144.01,143.96,3.08922084]
[1768657829806,9.34363885,144.02,143.96,3.08922084]
[1768657830007,5.28184286,144.01,143.96,3.08922084]
[1768657830208,9.34363885,144.02,143.96,3.08922084]
[1768657830506,5.2817138,144.01,143.96,3.08922084]
[1768657830708,3.09233885,144.02,143.96,3.08922084]
[1768657830909,5.2817138,144.01,143.96,3.08922084]
[1768657831105,3.09233885,144.02,143.96,3.08922084]
[1768657831408,5.28161463,144.01,143.96,3.08922084]
[1768657831609,3.09233885,144.02,143.96,3.08922084]
[1768657831809,5.28158845,144.01,143.96,3.08922084]
[1768657832007,3.09233885,144.02,143.96,3.08922084]
[1768657832305,5.28158845,144.01,143.96,3.08922084]
[1768657832501,3.09233885,144.02,143.96,3.08922084]
[1768657832804,3.04077199,144.05,143.97,3.24069007]
[1768657833912,3.04077199,144.05,143.98,9.49359007]
[1768657836811,4.77092573,144.05,143.98,9.49359007]
[1768657837209,3.04077199,144.05,143.98,9.49359007]
[1768657837511,4.77092573,144.05,143.98,9.49359007]
[1768657838712,3.04077199,144.05,143.98,11.22374381]
[1768657839508,3.04077199,144.05,144.0,3.24069007]
[1768657842517,3.04077199,144.05,143.98,11.22374381]
[1768657842715,3.04077199,144.04,143.98,3.24069007]
[1768657849718,1.72903114,144.03,143.98,3.24069007]
[1768657850812,4.76980313,144.03,143.98,3.24069007]
[1768657851414,3.04077199,144.03,143.98,3.24069007]
[1768657851613,4.76980313,144.03,143.98,3.24069007]
[1768657858524,4.76980313,144.03,143.97,6.2533]
[1768657859526,4.76980313,144.03,143.97,9.28198652]
[1768657861424,3.17735485,144.02,143.95,9.28268652]
[1768657861820,3.17735485,144.0,143.95,3.02868652]
[1768657862125,3.17735485,144.0,143.94,6.2547]
[1768657862126,3.17735485,144.0,143.93,3.02868652]
[1768657862924,3.17735485,144.0,143.93,9.28378652]
[1768657864430,4.90638599,143.99,143.93,3.02868652]
[1768657870731,3.17735485,143.98,143.92,6.2555]
[1768657871036,3.17735485,143.98,143.92,9.28418652]
[1768657873739,3.17735485,143.98,143.93,3.02868652]
[1768657874736,1.72903114,144.0,143.93,3.02868652]
[1768657874938,3.17735485,144.0,143.94,3.02868652]
[1768657877645,3.17735485,144.0,143.95,3.02868652]
[1768657881548,11.15858599,144.0,143.93,3.02868652]
[1768657889045,3.03009702,143.99,143.93,3.02868652]
[1768657893452,3.03009702,143.99,143.92,6.2552]
[1768657893748,2.98748641,143.97,143.92,3.04192541]
[1768657895955,2.98748641,143.97,143.91,262.5]
[1768657905167,2.98748641,143.97,143.91,265.54192541]
[1768657906273,2.98748641,143.97,143.91,3.04192541]
[1768657923586,9.24128641,143.97,143.91,3.04192541]
[1768657936389,5.26995539,143.96,143.91,3.04192541]
[1768657936588,9.24128641,143.97,143.91,3.04192541]
[1768657936785,5.26995539,143.96,143.91,3.04192541]
[1768657936989,9.24128641,143.97,143.91,3.04192541]
[1768657937191,5.26995539,143.96,143.91,3.04192541]
[1768657937392,9.24128641,143.97,143.91,3.04192541]
[1768657937592,5.27106215,143.96,143.91,3.04192541]
[1768657937895,9.24128641,143.97,143.91,3.04192541]
[1768657938198,5.27106215,143.96,143.91,3.04192541]
[1768657938489,9.24128641,143.97,143.91,3.04192541]
[1768657938684,3.01780028,143.96,143.89,9.41417151]
[1768657938889,3.01780028,143.95,143.89,3.15737151]
[1768657959211,3.10681264,143.94,143.89,3.15737151]
[1768657960605,3.10681264,143.94,143.87,3.01873261]
[1768657961911,9.36161264,143.94,143.87,3.01873261]
[1768657963610,3.10681264,143.93,143.87,3.01873261]
[1768657981523,3.01563103,143.92,143.87,3.01873261]
[1768657989032,3.01563103,143.92,143.85,3.20355879]
[1768657989241,3.01563103,143.91,143.83,3.20355879]
[1768657991037,3.01563103,143.9,143.83,3.20355879]
[1768657991638,3.01563103,143.89,143.83,3.20355879]
[1768657993026,3.01563103,143.88,143.83,3.20355879]
[1768657993231,3.01563103,143.88,143.81,3.20355879]
[1768657993430,3.01563103,143.88,143.82,1.7317878]
[1768657993634,3.01563103,143.88,143.82,4.93534659]
[1768657994240,3.01563103,143.88,143.82,3.20355879]
[1768657994637,9.27313103,143.88,143.82,3.20355879]
[1768657996542,9.27353103,143.87,143.82,3.20355879]
[1768657997337,9.27353103,143.87,143.79,3.20355879]
[1768657997533,3.01563103,143.86,143.79,3.20355879]
[1768658008751,3.01563103,143.86,143.8,3.22182746]
[1768658010350,3.28960638,143.88,143.81,3.22182746]
[1768658011851,3.28960638,143.9,143.83,3.22182746]
[1768658012753,3.28960638,143.9,143.83,9.48122746]
[1768658014059,3.28960638,143.9,143.84,3.25453687]
[1768658015458,3.28960638,143.9,143.85,3.25453687]
[1768658019360,4.96310315,143.92,143.86,3.25453687]
[1768658020852,4.96310315,143.92,143.86,9.51263687]
[1768658023056,4.96310315,143.92,143.87,6.2577]
[1768658023264,4.96310315,143.94,143.87,9.51223687]
[1768658023456,4.96310315,143.94,143.88,3.25453687]
[1768658024659,3.23131535,143.93,143.88,3.25453687]
[1768658037480,3.23131535,143.93,143.87,6.2577]
[1768658041689,3.23131535,143.93,143.85,6.2583]
[1768658041985,4.74554029,143.92,143.85,9.41878883]
[1768658042180,3.01393358,143.92,143.85,3.16048883]
[1768658042882,3.01393358,143.92,143.86,3.16048883]
[1768658043787,3.01393358,143.92,143.86,9.41868883]
[1768658050391,3.01393358,143.92,143.87,3.16048883]
[1768658051194,4.74554029,143.94,143.87,9.41798883]
[1768658051393,4.74554029,143.94,143.88,3.16048883]
[1768658060096,4.74554029,143.94,143.88,9.41778883]
[1768658061304,5.31354498,143.93,143.88,9.41778883]
[1768658061496,4.74554029,143.94,143.88,9.41778883]
[1768658061696,5.31362269,143.93,143.88,9.41778883]
[1768658061892,4.74554029,143.94,143.88,9.41778883]
[1768658062096,5.31362269,143.93,143.88,9.41778883]
[1768658062298,4.74554029,143.94,143.88,9.41778883]
[1768658062500,5.31463669,143.93,143.88,9.41778883]
[1768658062799,4.74554029,143.94,143.88,9.41778883]
[1768658063001,5.31463669,143.93,143.88,9.41778883]
[1768658063201,4.74554029,143.94,143.88,9.41778883]
[1768658063403,5.31580944,143.93,143.88,9.41778883]
[1768658063597,4.74554029,143.94,143.88,9.41778883]
[1768658063803,5.31587199,143.93,143.88,9.41778883]
[1768658064001,4.74554029,143.94,143.88,9.41778883]
[1768658064201,5.31587199,143.93,143.88,9.41778883]
[1768658064402,4.74554029,143.94,143.88,9.41778883]
[1768658064600,5.3174753,143.93,143.88,9.41778883]
[1768658064801,4.74554029,143.94,143.88,9.41778883]
[1768658066606,3.01393358,143.94,143.88,9.41778883]
[1768658066806,1.73160671,143.95,143.9,3.19387189]
[1768658068808,3.22679602,143.96,143.9,9.45007189]
[1768658071905,3.22679602,143.96,143.91,9.44957189]
[1768658074006,3.22679602,143.96,143.92,6.2555]
[1768658076709,4.81996223,143.98,143.92,6.2555]
[1768658077109,4.81996223,143.98,143.92,9.53733803]
[1768658087325,4.81904224,143.98,143.92,9.53733803]
[1768658095239,3.08835552,143.98,143.92,9.53733803]
[1768658105154,3.08835552,143.98,143.93,3.08869134]
[1768658106547,1.73068672,143.99,143.93,9.34369134]
[1768658106753,6.2516,144.02,143.94,3.08869134]
[1768658106754,4.82900707,144.0,143.94,3.08869134]
[1768658107749,4.82900707,144.0,143.94,9.34329134]
[1768658108357,5.2987509,143.99,143.95,3.08869134]
[1768658108557,4.82900707,144.0,143.95,3.08869134]
[1768658108760,5.29874791,143.99,143.95,3.08869134]
[1768658108950,4.82900707,144.0,143.95,3.08869134]
[1768658109258,5.29874791,143.99,143.95,3.08869134]
[1768658109449,4.82900707,144.0,143.95,3.08869134]
[1768658109651,5.30019343,143.99,143.95,3.08869134]
[1768658109858,4.82900707,144.0,143.95,3.08869134]
[1768658110049,5.30019343,143.99,143.95,3.08869134]
[1768658110250,4.82900707,144.0,143.95,3.08869134]
[1768658110459,5.3010529,143.99,143.94,6.2546]
[1768658110666,4.82900707,144.0,143.94,6.2546]
[1768658110964,5.3010529,143.99,143.94,6.2546]
[1768658111156,4.82900707,144.0,143.94,6.2546]
[1768658111354,5.30082978,143.99,143.94,6.2546]
[1768658111554,4.82900707,144.0,143.94,6.2546]
[1768658111753,5.30214966,143.99,143.94,6.2546]
[1768658111955,4.82900707,144.0,143.94,6.2546]
[1768658112155,5.30214966,143.99,143.94,6.2546]
[1768658112355,4.82900707,144.0,143.94,6.2546]
[1768658112557,5.30245934,143.99,143.94,6.2546]
[1768658112755,4.82900707,144.0,143.94,6.2546]
[1768658112955,5.30245934,143.99,143.94,6.2546]
[1768658113159,4.82900707,144.0,143.94,6.2546]
[1768658113359,5.30224965,143.99,143.94,6.2546]
[1768658113658,4.82900707,144.0,143.94,6.2546]
[1768658113854,5.30287675,143.99,143.94,6.2546]
[1768658114057,4.82900707,144.0,143.94,6.2546]
[1768658114259,5.30268108,143.99,143.94,6.2546]
[1768658114459,4.82900707,144.0,143.94,6.2546]
[1768658114660,5.30305885,143.99,143.94,6.2546]
[1768658114861,4.82900707,144.0,143.94,6.2546]
[1768658115160,5.30305885,143.99,143.94,6.2546]
[1768658115362,4.82900707,144.0,143.94,6.2546]
[1768658115662,5.30329807,143.99,143.94,6.2546]
[1768658115959,4.82900707,144.0,143.94,6.2546]
[1768658116161,5.30329807,143.99,143.94,6.2546]
[1768658116361,4.82900707,144.0,143.94,6.2546]
[1768658116560,5.30333992,143.99,143.94,6.2546]
[1768658116757,4.82900707,144.0,143.94,6.2546]
[1768658116952,5.30333992,143.99,143.94,6.2546]
[1768658117158,4.82900707,144.0,143.94,6.2546]
[1768658117355,5.30320076,143.99,143.94,6.2546]
[1768658117555,4.82900707,144.0,143.94,6.2546]
[1768658117757,5.30322137,143.99,143.94,6.2546]
[1768658117957,4.82900707,144.0,143.94,6.2546]
[1768658118160,5.30322137,143.99,143.94,6.2546]
[1768658118464,4.82900707,144.0,143.94,6.2546]
[1768658118762,5.30313322,143.99,143.94,6.2546]
[1768658118963,4.82900707,144.0,143.94,6.2546]
[1768658119262,5.30313322,143.99,143.94,6.2546]
[1768658119461,4.82900707,144.0,143.94,6.2546]
[1768658119662,5.30307634,143.99,143.94,6.2546]
[1768658119863,4.82900707,144.0,143.94,6.2546]
[1768658120162,5.30307634,143.99,143.94,6.2546]
[1768658120361,4.82900707,144.0,143.94,6.2546]
[1768658120562,3.09832035,143.99,143.92,3.08869134]
[1768658121760,3.09832035,143.99,143.93,6.2549]
[1768658121957,3.09832035,143.99,143.92,3.08869134]
[1768658122467,1.73068672,143.98,143.92,3.08869134]
[1768658122763,3.21147652,143.97,143.92,3.08869134]
[1768658125965,3.21147652,143.97,143.91,6.256]
[1768658126561,3.21147652,143.97,143.91,9.56207264]